lending/lending_fUSD_20260306
["ID","MTS","AMOUNT","RATE_DAILY","PERIOD"]
[407757676,1772767668559,151.0,0.00016246,2]
[407757677,1772767669198,151.0,0.00016246,2]
[407757678,1772767670153,151.0,0.00016246,2]
[407757679,1772767670433,151.0,0.00016246,2]
[407757680,1772767671561,151.0,0.00016246,2]
[407757681,1772767672207,151.0,0.00016246,2]
[407757682,1772767673530,151.0,0.00016246,2]
[407757683,1772767673576,151.0,0.00016246,2]
[407757684,1772767674068,151.0,0.00016246,2]
[407757685,1772767674707,151.0,0.00016246,2]
[407757686,1772767675324,151.0,0.00016246,2]
[407757687,1772767675392,2423.16825902,0.000139,5]
[407757688,1772767675414,434.83174098,0.000139,5]
[407757689,1772767675919,151.0,0.00016246,2]
[407757690,1772767677086,500.0,0.00016255,2]
[407757691,1772767677123,450.56987895,0.00016255,2]
[407757692,1772767681479,300.0,0.00016255,2]
[407757693,1772767710719,2673.0,0.000138,5]
[407757694,1772767723530,196.30944379,0.00016156,2]
[407757695,1772767747975,152.0,0.00016256,2]
[407757696,1772767753735,959.76061048,0.00016156,2]
[407757697,1772767754950,157.81344283,0.00016156,2]
[407757698,1772767790723,4024.72488297,0.00016156,2]
[407757699,1772767790750,927.52510434,0.00016156,2]
[407757700,1772767801259,1200.0,0.00016255,2]
[407757701,1772767803038,286.0,0.00016256,2]
[407757702,1772767808897,7586.48489566,0.00016156,2]
[407757703,1772767808922,10000.01,0.00016156,2]
[407757704,1772767808947,10000.01,0.00016156,2]
[407757705,1772767808972,10000.01,0.00016156,2]
[407757706,1772767808997,5000.01,0.00016156,2]
[407757707,1772767809024,5000.01,0.00016156,2]
[407757708,1772767809048,5000.01,0.00016156,2]
[407757709,1772767809072,5000.01,0.00016156,2]
[407757710,1772767809097,5000.01,0.00016156,2]
[407757711,1772767809120,5000.01,0.00016156,2]
[407757712,1772767809144,5000.01,0.00016156,2]
[407757713,1772767809167,5000.01,0.00016156,2]
[407757714,1772767809190,5000.01,0.00016156,2]
[407757715,1772767809216,10000.01,0.00016156,2]
[407757716,1772767809241,10000.01,0.00016156,2]
[407757717,1772767809266,10000.01,0.00016156,2]
[407757718,1772767809292,10000.01,0.00016156,2]
[407757719,1772767809316,10000.01,0.00016156,2]
[407757720,1772767823376,507.0,0.00014,2]
[407757726,1772767825113,164.19835503,0.00016146,2]
[407757729,1772767831563,-1611.15630401,0.00016156,2]
[407757730,1772767831616,-5000.00113981,0.00016156,2]
[407757731,1772767831727,-583386.21791008,0.00016156,2]
[407757744,1772767833824,500.0,0.00016155,2]
[407757745,1772767833900,4500.01,0.000136,5]
[407757746,1772767833922,302.99,0.000136,5]
[407757747,1772767833975,165.39891527,0.00016155,2]
[407757748,1772767834020,530.25194574,0.00016155,2]
[407757749,1772767835612,500.0,0.00016155,2]
[407757750,1772767835671,500.0,0.00016155,2]
[407757751,1772767835726,500.0,0.00016155,2]
[407757752,1772767835789,500.0,0.00016155,2]
[407757753,1772767835839,363.80742344,0.00016155,2]
[407757755,1772767837739,-1230.81723847,0.00016156,2]
[407757756,1772767837751,-1188.84583088,0.00016156,2]
[407757757,1772767837762,-1918.23923806,0.00016156,2]
[407757758,1772767837774,-1773078.06744303,0.00016156,2]
[407757759,1772767837783,-1000.0,0.00016255,2]
[407757760,1772767837792,-500.0,0.00016256,2]
[407757761,1772767837802,-1574.04678007,0.00016256,2]
[407757762,1772767837811,-250.0,0.00016256,2]
[407757763,1772767837820,-400.0,0.00016257,5]
[407757764,1772767837830,-642.97646691,0.00016261,2]
[407757765,1772767837839,-5120.4908,0.00016279,2]
[407757766,1772767837848,-1000.0,0.00016288,2]
[407757767,1772767837858,-21634.3672,0.00016288,2]
[407757768,1772767837867,-500.0,0.00016388,2]
[407757769,1772767837877,-500.0,0.00016388,2]
[407757770,1772767837889,-588.91727465,0.00016388,2]
[407757771,1772767837899,-4952.24998729,0.00016572,2]
[407757772,1772767837908,-959.76061042,0.00016691,2]
[407757773,1772767837918,-166.25,0.00016712,2]
[407757774,1772767837927,-150.06,0.0001679,2]
[407757775,1772767837936,-299.99,0.0001679,4]
[407757776,1772767837946,-9999.99,0.0001679,2]
[407757777,1772767837956,-3709.45,0.0001679,2]
[407757778,1772767837965,-150.99,0.0001679,2]
[407757779,1772767837974,-9999.99,0.0001679,2]
[407757780,1772767837984,-233.28722476,0.00016793,2]
[407757781,1772767837993,-221.88465421,0.00016807,2]
[407757782,1772767838002,-150.0,0.0001683,2]
[407757783,1772767838012,-150.0,0.0001683,30]
[407757784,1772767838021,-4952.24998729,0.00016988,2]
[407757785,1772767838031,-150.06,0.0001706,2]
[407757787,1772767838040,-959.76061042,0.00017226,2]
[407757788,1772767838049,-2879.99,0.00017226,2]
[407757789,1772767838058,-150.06,0.0001733,2]
[407757790,1772767838067,-200.0,0.0001733,2]
[407757791,1772767838077,-4952.24998729,0.00017404,2]
[407757792,1772767838086,-221.88465421,0.00017425,2]
[407757793,1772767838096,-1244.62,0.00017454,2]
[407757794,1772767838104,-150.0,0.00017467,2]
[407757795,1772767838115,-222.54445227,0.00017548,2]
[407757796,1772767838124,-150.06,0.000176,2]
[407757797,1772767838133,-152.0,0.00017627,3]
[407757798,1772767838142,-214.23,0.00017661,2]
[407757799,1772767838151,-152.0,0.0001776,4]
[407757800,1772767838159,-959.76061042,0.00017761,2]
[407757801,1772767838168,-6213.89,0.00017775,2]
[407757802,1772767838177,-4952.24998729,0.0001782,2]
[407757803,1772767838186,-1680.0,0.00017857,2]
[407757804,1772767838195,-150.06,0.0001787,2]
[407757805,1772767838204,-2500.0,0.00017882,2]
[407757806,1772767838214,-549.22545604,0.00017882,2]
[407757807,1772767838223,-250.0,0.00017882,2]
[407757808,1772767838233,-5000.0,0.00017882,2]
[407757809,1772767838242,-300.0,0.00017882,2]
[407757810,1772767838252,-5000.0,0.00017882,2]
[407757811,1772767838261,-2500.0,0.00017882,2]
[407757812,1772767838271,-2500.0,0.00017882,2]
[407757813,1772767838280,-372.43373821,0.00017882,2]
[407757814,1772767838289,-2500.0,0.00017882,2]
[407757815,1772767838298,-500.0,0.00017882,2]
[407757816,1772767838307,-402.86,0.00017882,2]
[407757817,1772767838317,-152.0,0.00017894,5]
[407757818,1772767838326,-502.0,0.00017945,2]
[407757819,1772767838335,-200.0,0.00018,2]
[407757820,1772767838345,-152.0,0.00018027,6]
[407757821,1772767838354,-221.88465421,0.00018044,2]
[407757822,1772767838364,-1500.0,0.00018082,7]
[407757823,1772767838374,-1000.0,0.00018127,2]
[407757824,1772767838384,-500.0,0.00018137,2]
[407757825,1772767838393,-150.06,0.0001814,2]
[407757826,1772767838402,-402.86,0.00018156,2]
[407757827,1772767838412,-152.0,0.00018161,7]
[407757828,1772767838421,-4952.24998729,0.00018236,2]
[407757829,1772767838430,-1109.0,0.00018274,2]
[407757830,1772767838439,-152.0,0.00018295,8]
[407757831,1772767838448,-959.76061042,0.00018295,2]
[407757832,1772767838457,-800.0,0.00018356,7]
[407757833,1772767838466,-500.0,0.00018356,7]
[407757834,1772767838475,-2803.0,0.000184,2]
[407757835,1772767838484,-150.06,0.0001841,2]
[407757836,1772767838492,-433.01,0.00018421,2]
[407757837,1772767838501,-152.0,0.00018428,9]
[407757838,1772767838510,-402.86,0.0001843,2]
[407757839,1772767838519,-152.0,0.00018562,10]
[407757840,1772767838528,-4952.24998729,0.00018652,2]
[407757841,1772767838537,-221.88465421,0.00018663,2]
[407757842,1772767838546,-150.06,0.0001868,2]
[407757843,1772767838555,-422.82,0.00018681,2]
[407757844,1772767838564,-152.0,0.00018696,11]
[407757845,1772767838573,-402.86,0.00018704,2]
[407757846,1772767838583,-1071.94,0.00018719,2]
[407757847,1772767838592,-160.0,0.0001872,2]
[407757848,1772767838601,-270.35234818,0.0001873,5]
[407757849,1772767838610,-433.01,0.00018783,2]
[407757850,1772767838619,-500.0,0.00018822,2]
[407757851,1772767838628,-152.0,0.00018829,12]
[407757852,1772767838639,-959.76061042,0.0001883,2]
[407757853,1772767838648,-150.06,0.0001895,2]
[407757854,1772767838657,-152.0,0.00018963,13]
[407757855,1772767838666,-402.86843405,0.00018978,2]
[407757856,1772767838675,-151.25613122,0.00018999,2]
[407757857,1772767838686,-1000.0,0.00018999,2]
[407757858,1772767838696,-721.12765535,0.00018999,2]
[407757859,1772767838705,-388.24372288,0.00018999,2]
[407757860,1772767838717,-250.0,0.00018999,2]
[407757861,1772767838726,-500.0,0.00018999,2]
[407757862,1772767838735,-250.0,0.00018999,2]
[407757863,1772767838744,-259.63761657,0.00018999,2]
[407757864,1772767838753,-500.0,0.00018999,2]
[407757865,1772767838764,-500.0,0.00018999,2]
[407757866,1772767838773,-500.0,0.00018999,2]
[407757867,1772767838782,-500.0,0.00018999,2]
[407757868,1772767838791,-500.0,0.00018999,2]
[407757869,1772767838801,-550.66502263,0.00018999,2]
[407757870,1772767838810,-500.0,0.00018999,2]
[407757871,1772767838820,-500.0,0.00018999,2]
[407757872,1772767838830,-1000.0,0.00018999,2]
[407757873,1772767838839,-500.0,0.00018999,2]
[407757874,1772767838849,-1000.0,0.00018999,2]
[407757875,1772767838859,-500.0,0.00018999,2]
[407757876,1772767838869,-1000.0,0.00018999,2]
[407757877,1772767838879,-500.0,0.00018999,2]
[407757878,1772767838889,-1000.0,0.00018999,2]
[407757879,1772767838899,-1000.0,0.00018999,2]
[407757880,1772767838908,-693.3919763,0.00018999,2]
[407757881,1772767838918,-1000.0,0.00018999,2]
[407757882,1772767838927,-201.4007416,0.00018999,2]
[407757883,1772767838936,-151.0,0.00018999,2]
[407757884,1772767838946,-151.0,0.00018999,2]
[407757885,1772767838956,-151.0,0.00018999,2]
[407757886,1772767838965,-151.0,0.00018999,2]
[407757887,1772767838975,-300.0,0.00018999,2]
[407757888,1772767838984,-151.0,0.00018999,2]
[407757889,1772767838994,-250.0,0.00018999,2]
[407757890,1772767839003,-309.621819,0.00018999,2]
[407757891,1772767839013,-151.0,0.00018999,2]
[407757892,1772767839023,-151.0,0.00018999,2]
[407757893,1772767839033,-250.0,0.00018999,2]
[407757894,1772767839043,-151.0,0.00018999,2]
[407757895,1772767839052,-250.0,0.00018999,2]
[407757896,1772767839062,-151.0,0.00018999,2]
[407757897,1772767839073,-174.61919141,0.00018999,2]
[407757898,1772767839084,-250.0,0.00018999,2]
[407757899,1772767839093,-250.0,0.00018999,2]
[407757900,1772767839104,-151.0,0.00018999,2]
[407757901,1772767839114,-250.0,0.00018999,2]
[407757902,1772767839123,-250.0,0.00018999,2]
[407757903,1772767839133,-279.56962655,0.00018999,2]
[407757904,1772767839143,-257.94767592,0.00018999,2]
[407757905,1772767839154,-250.0,0.00018999,2]
[407757906,1772767839163,-250.0,0.00018999,2]
[407757907,1772767839173,-250.0,0.00018999,2]
[407757908,1772767839183,-500.0,0.00018999,2]
[407757909,1772767839193,-250.0,0.00018999,2]
[407757910,1772767839203,-355.53018622,0.00018999,2]
[407757911,1772767839214,-151.0,0.00018999,2]
[407757912,1772767839224,-262.90206542,0.00018999,2]
[407757913,1772767839234,-156.587,0.00018999,2]
[407757914,1772767839243,-223.10716334,0.00018999,2]
[407757915,1772767839253,-753.3858378,0.00018999,2]
[407757916,1772767839262,-269.917619,0.00018999,2]
[407757917,1772767839272,-500.0,0.00018999,2]
[407757918,1772767839282,-500.0,0.00018999,2]
[407757919,1772767839291,-500.0,0.00018999,2]
[407757920,1772767839301,-500.0,0.00018999,2]
[407757921,1772767839310,-500.0,0.00018999,2]
[407757922,1772767839320,-500.0,0.00018999,2]
[407757923,1772767839331,-500.0,0.00018999,2]
[407757924,1772767839340,-500.0,0.00018999,2]
[407757925,1772767839349,-500.0,0.00018999,2]
[407757926,1772767839359,-193.74122191,0.00018999,2]
[407757927,1772767839369,-14218.10285156,0.00019,2]
[407757928,1772767839379,-184.4003812,0.00019,2]
[407757929,1772767839390,-1259.9,0.00019022,2]
[407757930,1772767839401,-604.0,0.0001904,2]
[407757931,1772767839413,-160.0,0.0001904,2]
[407757932,1772767839423,-719.04747942,0.00019054,2]
[407757933,1772767839432,-151.0,0.00019054,2]
[407757934,1772767839442,-422.82,0.00019058,2]
[407757935,1772767839451,-4952.24998729,0.00019068,2]
[407757936,1772767839461,-152.0,0.00019097,14]
[407757937,1772767839471,-172.74325605,0.00019108,2]
[407757938,1772767839481,-745.65223616,0.00019109,2]
[407757939,1772767839491,-151.0,0.00019109,2]
[407757940,1772767839500,-500.0,0.00019123,2]
[407757941,1772767839510,-433.02219789,0.00019146,2]
[407757942,1772767839520,-773.2413689,0.00019164,2]
[407757943,1772767839530,-151.0,0.00019164,2]
[407757944,1772767839539,-160.0,0.00019167,2]
[407757945,1772767839550,-153.26719895,0.00019172,2]
[407757946,1772767839559,-1500.0,0.00019178,7]
[407757947,1772767839568,-801.85129955,0.00019219,2]
[407757948,1772767839578,-151.0,0.00019219,2]
[407757949,1772767839587,-150.06,0.0001922,2]
[407757950,1772767839597,-152.0,0.0001923,15]
[407757951,1772767839606,-1109.0,0.00019236,2]
[407757952,1772767839615,-845.0,0.00019253,2]
[407757953,1772767839625,-847.0,0.00019253,2]
[407757954,1772767839635,-831.51979763,0.00019274,2]
[407757955,1772767839645,-151.0,0.00019274,2]
[407757956,1772767839656,-685.36,0.0001928,2]
[407757957,1772767839666,-221.88465421,0.00019281,2]
[407757958,1772767839676,-1000.0,0.00019294,2]
[407757959,1772767839687,-1042.0,0.00019316,2]
[407757960,1772767839696,-619.0,0.00019316,2]
[407757961,1772767839706,-862.28603014,0.00019329,2]
[407757962,1772767839716,-155.25791837,0.00019329,2]
[407757963,1772767839725,-160.0,0.0001936,2]
[407757964,1772767839735,-160.0,0.0001936,2]
[407757965,1772767839744,-160.0,0.0001936,2]
[407757966,1772767839753,-846.0,0.0001936,2]
[407757967,1772767839763,-152.0,0.00019364,16]
[407757968,1772767839772,-959.76061042,0.00019365,2]
[407757969,1772767839782,-894.19061326,0.00019384,2]
[407757970,1772767839791,-422.84,0.00019435,2]
[407757971,1772767839800,-927.27566595,0.00019439,2]
[407757972,1772767839809,-800.0,0.00019452,7]
[407757973,1772767839819,-500.0,0.00019452,7]
[407757975,1772767839828,-4952.24998729,0.00019484,2]
[407757977,1772767839838,-10000.0,0.00019489,2]
[407757979,1772767839847,-150.06,0.0001949,2]
[407757980,1772767839857,-961.58486559,0.00019494,2]
[407757981,1772767839866,-152.0,0.00019498,17]
[407757982,1772767839876,-845.16,0.000195,2]
[407757983,1772767839885,-847.0,0.00019509,2]
[407757984,1772767839895,-1000.0,0.00019547,2]
[407757985,1772767839909,-181.08010149,0.00019547,2]
[407757986,1772767839919,-500.0,0.00019547,2]
[407757987,1772767839929,-272.62944185,0.00019547,2]
[407757988,1772767839939,-369.88455668,0.00019547,2]
[407757989,1772767839948,-997.16350561,0.00019549,2]
[407757990,1772767839958,-1000.0,0.00019568,2]
[407757991,1772767839967,-500.0,0.00019589,2]
[407757992,1772767839977,-500.0,0.00019589,2]
[407757993,1772767839987,-500.0,0.00019589,2]
[407757994,1772767839996,-500.0,0.00019589,2]
[407757995,1772767840005,-500.0,0.00019589,2]
[407757996,1772767840015,-286.65230296,0.00019589,2]
[407757997,1772767840024,-401.91416982,0.000196,2]
[407757998,1772767840036,-1282.924,0.00019606,2]
[407757999,1772767840046,-150.31,0.00019606,2]
[407758000,1772767840055,-1219.676,0.00019606,2]
[407758001,1772767840065,-922.0,0.00019606,2]
[407758002,1772767840074,-1316.0,0.00019616,2]
[407758003,1772767840084,-152.0,0.00019631,18]
[407758004,1772767840093,-1071.94,0.00019655,2]
[407758005,1772767840102,-847.0,0.0001968,2]
[407758006,1772767840112,-882.524513,0.00019732,2]
[407758007,1772767840121,-150.06,0.0001976,2]
[407758008,1772767840131,-391.0,0.00019762,2]
[407758009,1772767840141,-152.0,0.00019765,19]
[407758010,1772767840151,-391.0,0.00019777,2]
[407758011,1772767840160,-391.0,0.0001978,2]
[407758012,1772767840170,-12635.48,0.0001978,2]
[407758013,1772767840179,-391.0,0.00019803,2]
[407758014,1772767840188,-391.0,0.00019822,2]
[407758015,1772767840198,-391.0,0.00019839,2]
[407758016,1772767840207,-500.0,0.0001984,2]
[407758017,1772767840216,-1000.0,0.00019842,2]
[407758018,1772767840225,-214.23,0.00019848,2]
[407758019,1772767840235,-153.26719895,0.00019856,2]
[407758020,1772767840244,-25000.0,0.00019865,3]
[407758021,1772767840254,-275.1402382,0.00019873,2]
[407758022,1772767840263,-25000.0,0.00019874,3]
[407758023,1772767840272,-25000.0,0.00019882,3]
[407758024,1772767840282,-25000.0,0.00019891,3]
[407758025,1772767840291,-5800.0,0.00019892,2]
[407758026,1772767840300,-152.0,0.00019898,20]
[407758027,1772767840310,-221.88465421,0.000199,2]
[407758028,1772767840319,-25000.0,0.000199,3]
[407758029,1772767840328,-5800.0,0.000199,2]
[407758030,1772767840338,-21510.35850006,0.000199,3]
[407758031,1772767840347,-959.76061042,0.000199,2]
[407758032,1772767840357,-358.94539511,0.000199,2]
[407758033,1772767840366,-4952.24998729,0.000199,2]
[407758034,1772767840375,-3118.0,0.000199,2]
[407758035,1772767840384,-391.0,0.00019932,2]
[407758036,1772767840393,-391.0,0.00019935,2]
[407758037,1772767840403,-391.0,0.00019937,2]
[407758038,1772767840412,-391.0,0.00019938,2]
[407758039,1772767840422,-391.0,0.00019944,2]
[407758040,1772767840431,-391.0,0.00019961,2]
[407758041,1772767840441,-391.0,0.00019964,2]
[407758042,1772767840451,-49174.2935205,0.00019964,2]
[407758043,1772767840460,-8249.9251832,0.00019964,2]
[407758044,1772767840469,-229.79782269,0.00019973,2]
[407758045,1772767840479,-510.95525373,0.00019973,2]
[407758046,1772767840489,-500.0,0.00019973,2]
[407758047,1772767840498,-500.0,0.00019973,2]
[407758048,1772767840507,-500.0,0.00019973,2]
[407758049,1772767840517,-500.0,0.00019973,2]
[407758050,1772767840526,-168.9717679,0.00019973,2]
[407758051,1772767840535,-500.52071293,0.00019973,2]
[407758052,1772767840545,-500.0,0.00019973,2]
[407758053,1772767840554,-500.0,0.00019973,2]
[407758054,1772767840563,-500.0,0.00019973,2]
[407758055,1772767840572,-500.0,0.00019973,2]
[407758056,1772767840581,-500.0,0.00019973,2]
[407758057,1772767840590,-500.0,0.00019973,2]
[407758058,1772767840869,-546.12894098,0.00019973,2]
[407758059,1772767840892,-500.0,0.00019973,2]
[407758060,1772767840902,-331.25166911,0.00019973,2]
[407758061,1772767840911,-500.0,0.00019973,2]
[407758062,1772767840924,-500.0,0.00019973,2]
[407758063,1772767840936,-500.0,0.00019973,2]
[407758064,1772767840945,-500.0,0.00019973,2]
[407758065,1772767840955,-500.0,0.00019973,2]
[407758066,1772767840963,-547.9842787,0.00019973,2]
[407758067,1772767840973,-500.0,0.00019973,2]
[407758068,1772767840981,-500.0,0.00019973,2]
[407758069,1772767840990,-500.0,0.00019973,2]
[407758070,1772767840999,-500.0,0.00019973,2]
[407758071,1772767841008,-500.46240701,0.00019973,2]
[407758072,1772767841018,-500.0,0.00019973,2]
[407758073,1772767841027,-500.0,0.00019973,2]
[407758074,1772767841036,-500.0,0.00019973,2]
[407758075,1772767841045,-500.0,0.00019973,2]
[407758076,1772767841054,-416.65018006,0.00019973,2]
[407758077,1772767841063,-376.4148485,0.00019973,2]
[407758078,1772767841072,-205.17812139,0.00019973,2]
[407758079,1772767841080,-368.95129788,0.00019973,2]
[407758080,1772767841089,-188.06599581,0.00019973,2]
[407758081,1772767841098,-391.0,0.00019979,2]
[407758082,1772767841107,-229.64083117,0.0001998,2]
[407758083,1772767841116,-324.85912828,0.00019987,2]
[407758084,1772767841125,-350.70736526,0.00019987,4]
[407758085,1772767841134,-164.19835503,0.0001999,2]
[407758086,1772767841143,-391.0,0.00019992,2]
[407758087,1772767841152,-437.0,0.00019994,2]
[407758088,1772767841161,-150.0,0.00019999,2]
[407758089,1772767841170,-160.04502343,0.00019999,2]
[407758090,1772767841179,-2072.0,0.0002,2]
[407758091,1772767841187,-151.0,0.0002,2]
[407758092,1772767841196,-151.0,0.0002,2]
[407758093,1772767841205,-151.0,0.0002,2]
[407758094,1772767841215,-26298.43206996,0.0002,2]
[407758095,1772767841224,-2740527.78270698,0.0002,2]
[407758096,1772767841372,-530.25194574,0.00016571,2]
[407758097,1772767841384,-378.36629192,0.00019873,2]
[407758098,1772767841394,-2087127.48614994,0.0002,2]
[407758099,1772767841440,500.0,0.00016155,2]
[407758103,1772767842916,-1101.1049965,0.00019316,2]
[407758107,1772767845769,-415.49999998,0.00016987,2]
[407758113,1772767863557,506.0,0.00014,2]
[407758114,1772767867966,4494.01,7.945e-05,2]
[407758115,1772767867988,4881.016712,7.945e-05,2]
[407758116,1772767873949,118.993288,0.00016156,2]
[407758117,1772767873971,5000.01,0.00016156,2]
[407758118,1772767873992,4443.378212,0.00016156,2]
[407758119,1772767874351,556.631788,8.728e-05,2]
[407758120,1772767874373,1273.108212,8.728e-05,2]
[407758121,1772767874568,1829.74,9.188e-05,2]
[407758122,1772767874767,1829.74,9.647e-05,2]
[407758123,1772767874973,67.421788,0.00010106,2]
[407758124,1772767875000,1762.318212,0.00010106,2]
[407758125,1772767875174,1829.74,0.00010566,2]
[407758126,1772767875590,1829.74,0.00011025,2]
[407758127,1772767875821,1829.74,0.00011485,2]
[407758128,1772767876069,1829.74,0.00011944,2]
[407758129,1772767876255,918.731788,0.00012403,2]
[407758130,1772767876277,911.008212,0.00012403,2]
[407758131,1772767876452,1829.74,0.00012863,2]
[407758132,1772767876668,1829.74,0.00013322,2]
[407758133,1772767876865,1829.74,0.00013782,2]
[407758134,1772767877083,1340.53,0.00014241,2]
[407758135,1772767877106,489.21,0.00014241,2]
[407758136,1772767877495,1829.74,0.000147,2]
[407758137,1772767877703,1829.74,0.0001516,2]
[407758138,1772767877989,851.32,0.00015619,2]
[407758139,1772767878012,978.42,0.00015619,2]
[407758140,1772767878399,1829.74,0.00016079,2]
[407758141,1772767903146,250.0,0.00015,2]
[407758142,1772767927961,158.0,0.00016278,2]
[407758143,1772767936759,500.0,0.00012,2]
[407758144,1772767936818,500.0,0.00012,2]
[407758145,1772767937062,500.0,0.00012,2]
[407758146,1772767937241,500.0,0.00012,2]
[407758147,1772767937267,500.0,0.00012,2]
[407758148,1772767937319,567.21414502,0.00011187,2]
[407758149,1772767937380,651.72850661,0.00012,2]
[407758150,1772767937715,500.0,0.00012,2]
[407758151,1772767937750,500.0,0.00012,2]
[407758152,1772767938065,500.0,0.00012,2]
[407758153,1772767938209,500.0,0.00012,2]
[407758154,1772767938576,500.0,0.00012,2]
[407758155,1772767938697,500.0,0.00012,2]
[407758156,1772767939075,500.0,0.00012,2]
[407758157,1772767939194,500.0,0.00011187,2]
[407758158,1772767939624,500.0,0.00012,2]
[407758159,1772767939690,500.0,0.00011187,2]
[407758160,1772767940258,500.0,0.00012,2]
[407758161,1772767940780,500.0,0.00011187,2]
[407758162,1772767941269,500.0,0.00011187,2]
[407758163,1772767941786,500.0,0.00011187,2]
[407758164,1772767942262,500.0,0.00011187,2]
[407758165,1772767942393,500.0,0.00012,2]
[407758166,1772767942759,500.0,0.00011187,2]
[407758167,1772767942920,500.0,0.00012,2]
[407758168,1772767943254,500.0,0.00011187,2]
[407758169,1772767943422,500.0,0.00012,2]
[407758170,1772767943583,500.0,0.00012,2]
[407758171,1772767943630,500.0,0.00012,2]
[407758172,1772767943922,500.0,0.00012,2]
[407758173,1772767944111,4000.01,0.00016156,2]
[407758174,1772767944137,10000.01,0.00016156,2]
[407758175,1772767944162,10000.01,0.00016156,2]
[407758176,1772767944186,10000.01,0.00016156,2]
[407758177,1772767944210,10000.01,0.00016156,2]
[407758178,1772767944233,10000.01,0.00016156,2]
[407758179,1772767944258,10000.01,0.00016156,2]
[407758180,1772767944282,2500.01,0.00016156,2]
[407758181,1772767944306,5000.01,0.00016156,2]
[407758182,1772767944331,5000.01,0.00016156,2]
[407758183,1772767944355,5000.01,0.00016156,2]
[407758184,1772767944385,500.0,0.00011187,2]
[407758185,1772767944414,500.0,0.00012,2]
[407758186,1772767944606,149.59522589,0.00011278,2]
[407758187,1772767944628,350.40477411,0.00011278,2]
[407758188,1772767944677,500.0,0.00012,2]
[407758189,1772767944706,299.19045178,0.00011187,2]
[407758190,1772767944732,200.80954822,0.00011187,2]
[407758191,1772767944996,929.66197718,0.00011278,2]
[407758192,1772767945129,500.0,0.00011278,2]
[407758193,1772767945164,500.0,0.00011187,2]
[407758194,1772767945606,500.0,0.00011278,2]
[407758195,1772767945648,500.0,0.00011187,2]
[407758196,1772767946112,900.0,0.00011278,2]
[407758197,1772767946173,500.0,0.00011187,2]
[407758198,1772767947492,756.90364088,0.00011187,2]
[407758199,1772767947574,501.42269066,0.00012,2]
[407758200,1772767949490,341.68366846,0.00012,2]
[407758201,1772767949512,158.31633154,0.00012,2]
[407758202,1772767950056,500.0,0.00012,2]
[407758203,1772767950263,500.0,0.00012,2]
[407758204,1772767950597,772.51415666,0.00012,2]
[407758205,1772767950625,500.0,0.00011278,2]
[407758206,1772767950796,500.0,0.00012,2]
[407758207,1772767950871,500.0,0.00012,2]
[407758208,1772767951087,500.0,0.00011278,2]
[407758209,1772767951269,500.0,0.00012,2]
[407758210,1772767951381,502.83026918,0.00011278,2]